bitfinex/quotes_SOLUSD_20250622
["timestamp","ask_amount","ask_price","bid_price","bid_amount"]
[1750595827732,2.78967796,132.88,132.84,7.5276821]
[1750595827945,2.78967796,132.87,132.84,7.5276821]
[1750595828121,2.78967796,132.86,132.84,7.5276821]
[1750595828440,28.78967796,132.88,132.83,13.8682044]
[1750595828647,2.78967796,132.87,132.83,13.8682044]
[1750595828936,2.78967796,132.86,132.83,13.8682044]
[1750595829236,2.78967796,132.87,132.83,13.8682044]
[1750595829420,2.78967796,132.86,132.83,13.8682044]
[1750595829617,2.78967796,132.87,132.83,13.8682044]
[1750595829839,2.78967796,132.86,132.8,20.15784886]
[1750595830020,2.79237866,132.85,132.8,20.15784886]
[1750595830227,10.3186751,132.87,132.81,7.52955349]
[1750595830532,2.79237866,132.86,132.81,7.52955349]
[1750595830711,2.79237866,132.85,132.81,7.52955349]
[1750595830914,2.79237866,132.87,132.81,7.52955349]
[1750595831129,2.79237866,132.86,132.81,7.52955349]
[1750595831327,2.79237866,132.85,132.81,7.52955349]
[1750595831537,26.0,132.86,132.81,7.52955349]
[1750595831729,2.79237866,132.85,132.81,7.52955349]
[1750595832126,26.0,132.86,132.81,7.52955349]
[1750595832330,2.79506518,132.85,132.81,7.52955349]
[1750595832543,26.0,132.86,132.81,7.52955349]
[1750595832736,2.79539559,132.85,132.82,18.64964886]
[1750595832945,2.79548424,132.85,132.82,18.64964886]
[1750595833127,26.0,132.86,132.82,18.64964886]
[1750595833328,2.79558715,132.85,132.82,18.64964886]
[1750595833643,26.0,132.86,132.82,18.64964886]
[1750595833835,2.79852876,132.85,132.82,18.64964886]
[1750595834025,26.0,132.86,132.82,18.64964886]
[1750595834219,2.79853826,132.85,132.82,18.64964886]
[1750595834550,26.0,132.86,132.82,18.64964886]
[1750595834741,2.79861617,132.85,132.83,7.52841978]
[1750595834944,2.79861617,132.84,132.83,7.52841978]
[1750595835117,2.79861617,132.85,132.83,7.52841978]
[1750595835319,2.79861617,132.84,132.83,7.52841978]
[1750595835533,26.0,132.86,132.83,7.52841978]
[1750595835534,2.79861617,132.85,132.83,7.52841978]
[1750595835734,5.58758064,132.89,132.83,7.52841978]
[1750595835934,26.0,132.87,132.83,7.52841978]
[1750595836149,2.79905515,132.86,132.83,7.52841978]
[1750595836445,2.79905515,132.85,132.83,7.52841978]
[1750595836752,26.0,132.87,132.83,7.52841978]
[1750595837046,2.80249826,132.86,132.83,7.52841978]
[1750595837239,2.80249826,132.85,132.83,7.52841978]
[1750595837436,2.80249826,132.84,132.83,7.52841978]
[1750595838218,2.80249826,132.84,132.83,26.17806864]
[1750595838424,2.80249826,132.86,132.83,7.52841978]
[1750595838619,2.80249826,132.85,132.83,7.52841978]
[1750595838855,2.80288992,132.86,132.83,26.34946924]
[1750595839154,26.0,132.87,132.83,26.34946924]
[1750595839341,2.80296107,132.86,132.83,26.34946924]
[1750595839538,26.0,132.87,132.83,26.34946924]
[1750595839742,2.80287641,132.86,132.83,26.34946924]
[1750595839940,144.03669138,132.88,132.86,18.64964886]
[1750595840143,144.03669138,132.91,132.86,18.64964886]
[1750595840351,2.80467216,132.9,132.88,18.64964886]
[1750595840534,2.80467216,132.89,132.88,18.64964886]
[1750595840929,2.80467216,132.9,132.88,18.64964886]
[1750595841136,144.03669138,132.91,132.88,18.64964886]
[1750595841347,2.80345554,132.9,132.89,7.52502069]
[1750595841528,2.80344819,132.9,132.89,7.52502069]
[1750595844348,2.80575274,132.9,132.88,18.64964886]
[1750595844541,2.80575274,132.89,132.88,18.64964886]
[1750595844930,144.03669138,132.91,132.88,18.64964886]
[1750595845131,2.80583319,132.9,132.88,18.64964886]
[1750595845351,144.03669138,132.91,132.88,18.64964886]
[1750595845539,2.8058568,132.9,132.89,7.52502069]
[1750595847238,2.80663896,132.9,132.89,7.52502069]
[1750595849366,8.42059898,132.9,132.85,7.52707932]
[1750595849526,2.80663896,132.89,132.85,7.52707932]
[1750595849728,2.80663896,132.88,132.85,7.52707932]
[1750595849930,2.80663896,132.87,132.85,7.52707932]
[1750595850164,2.80663896,132.86,132.84,7.52766508]
[1750595850333,2.80663896,132.85,132.84,7.52766508]
[1750595850643,2.80663896,132.85,132.83,26.17786826]
[1750595850850,2.80663896,132.84,132.83,26.17786826]
[1750595851844,2.80663896,132.84,132.83,7.5282194]
[1750595852154,2.80663896,132.84,132.82,13.86876066]
[1750595852368,2.80663896,132.83,132.82,6.34]
[1750595852834,2.80663896,132.83,132.8,7.52995515]
[1750595853030,2.80663896,132.82,132.8,7.52995515]
[1750595853233,2.80663896,132.81,132.8,26.17960401]
[1750595854286,2.80663896,132.81,132.78,32.62299208]
[1750595854469,2.80663896,132.8,132.77,35.46]
[1750595854763,2.80663896,132.79,132.77,6.36]
[1750595854933,2.80663896,132.78,132.77,6.36]
[1750595855133,2.80663896,132.78,132.75,1.5946]
[1750595855348,28.80663896,132.79,132.73,7.53409176]
[1750595855554,28.80663896,132.78,132.73,7.53409176]
[1750595855756,2.80663896,132.77,132.73,7.53409176]
[1750595856163,2.79540262,132.77,132.72,13.97674568]
[1750595856345,2.79540262,132.77,132.72,7.53454568]
[1750595856540,2.79540262,132.76,132.71,27.77940245]
[1750595856746,2.79540262,132.77,132.71,56.87940245]
[1750595857374,2.79540262,132.77,132.71,58.30700715]
[1750595858074,26.0,132.78,132.72,18.64964886]
[1750595858256,2.78905429,132.77,132.73,7.53409176]
[1750595858450,26.0,132.78,132.73,7.53409176]
[1750595859375,154.9252077,132.81,132.74,18.64964886]
[1750595859539,2.78865243,132.8,132.74,18.64964886]
[1750595859745,26.0,132.78,132.74,47.74964886]
[1750595860053,154.9252077,132.81,132.74,47.74964886]
[1750595860251,26.0,132.78,132.74,36.63347975]
[1750595860456,26.0,132.78,132.74,36.63347453]
[1750595862679,154.9252077,132.81,132.75,18.64964886]
[1750595862868,154.9252077,132.81,132.76,1.6452]
[1750595863173,10.88851632,132.81,132.77,47.74964886]
[1750595864281,10.88851632,132.81,132.79,18.64964886]
[1750595864449,10.88851632,132.81,132.8,47.74964886]
[1750595866386,10.88851632,132.81,132.8,55.27976934]
[1750595870083,10.88851632,132.81,132.8,36.63012048]
[1750595873660,10.88851632,132.81,132.8,55.27976934]
[1750595875970,144.03669138,132.86,132.82,18.64964886]
[1750595876173,144.03669138,132.86,132.83,29.06]
[1750595878059,144.03669138,132.86,132.84,7.52785305]
[1750595878491,145.63389138,132.9,132.84,7.52785305]
[1750595878793,144.03669138,132.9,132.85,47.70964886]
[1750595879097,10.55124239,132.92,132.86,6.1537]
[1750595879271,10.55124239,132.92,132.88,18.64964886]
[1750595879464,10.55124239,132.92,132.89,29.04]
[1750595880385,10.55124239,132.92,132.9,7.52445447]
[1750595880586,10.55124239,132.92,132.86,6.1537]
[1750595880764,10.55124239,132.92,132.87,29.04]
[1750595881083,36.55124239,132.92,132.87,29.04]
[1750595881481,44.07458881,132.92,132.87,29.04]
[1750595881796,36.55124239,132.92,132.87,29.04]
[1750595882692,36.55124239,132.92,132.88,7.52558699]
[1750595882995,36.55124239,132.92,132.88,26.17523585]
[1750595883370,10.55124239,132.92,132.89,18.64964886]
[1750595883569,10.55124239,132.92,132.89,47.68964886]
[1750595884789,10.55124239,132.92,132.9,7.52445447]
[1750595887397,10.55124239,132.92,132.89,36.56478914]
[1750595889284,10.55124239,132.92,132.9,18.64964886]
[1750595890078,10.55124239,132.92,132.91,47.68964886]
[1750595890297,10.55124239,132.92,132.91,29.04]
[1750595890613,10.55124239,132.92,132.91,55.2135372]
[1750595891308,10.55124239,132.92,132.91,36.56388834]
[1750595891509,10.55124239,132.92,132.91,29.04]
[1750595891718,10.55124239,132.92,132.91,36.56388834]
[1750595894213,10.55124239,132.92,132.91,29.04]
[1750595894526,10.55124239,132.92,132.89,36.58462968]
[1750595894724,10.55124239,132.92,132.89,29.06]
[1750595895304,36.55124239,132.92,132.88,6.34]
[1750595895609,2.77536756,132.91,132.88,6.34]
[1750595895799,2.77536756,132.91,132.88,13.86519115]
[1750595896115,36.55124239,132.92,132.88,13.86519115]
[1750595896806,2.77476399,132.91,132.88,6.34]
[1750595896988,2.77476399,132.91,132.88,13.86554796]
[1750595898117,36.55124239,132.92,132.88,13.86554796]
[1750595898294,2.77564674,132.91,132.88,13.86554796]
[1750595899598,146.81233812,132.91,132.88,13.86554796]
[1750595899797,144.03669138,132.91,132.88,13.86554796]
[1750595901325,144.03669138,132.91,132.88,13.86558652]
[1750595906604,2.77791421,132.9,132.88,13.86556712]
[1750595907510,26.0,132.89,132.88,6.34]
[1750595907710,171.67009138,132.88,132.79,7.53068755]
[1750595907910,8.33700253,132.87,132.8,29.04]
[1750595908113,2.77791421,132.86,132.8,29.04]
[1750595908300,2.77791421,132.85,132.8,29.04]
[1750595908622,2.77791421,132.84,132.81,18.64964886]
[1750595908823,2.77913003,132.87,132.81,18.64964886]
[1750595909024,2.77900001,132.87,132.81,18.64964886]
[1750595909603,2.77900001,132.87,132.82,7.52898659]
[1750595909827,2.77900001,132.86,132.83,29.04]
[1750595910008,2.77900001,132.87,132.83,29.04]
[1750595910192,2.77900001,132.86,132.83,29.04]
[1750595910398,2.77900001,132.87,132.83,29.04]
[1750595910607,2.77900001,132.86,132.83,29.04]
[1750595910823,2.77900001,132.87,132.83,29.04]
[1750595911125,2.77900001,132.86,132.83,29.04]
[1750595911325,2.77900001,132.87,132.83,29.04]
[1750595911503,2.77900001,132.86,132.83,29.04]
[1750595911699,170.03669138,132.88,132.84,7.52785305]
[1750595911898,2.77779691,132.87,132.85,18.64964886]
[1750595912098,170.03669138,132.88,132.85,18.64964886]
[1750595913225,2.77788664,132.87,132.85,18.64964886]
[1750595913431,2.77788664,132.87,132.84,7.52785305]
[1750595913633,2.77788664,132.86,132.84,7.52785305]
[1750595913939,2.77788664,132.87,132.84,7.52785305]
[1750595914104,2.77788664,132.86,132.84,7.52785305]
[1750595914303,2.77788664,132.87,132.84,7.52785305]
[1750595914528,2.77866423,132.86,132.84,7.52785305]
[1750595914725,2.77866423,132.87,132.84,7.52785305]
[1750595914926,2.77866423,132.86,132.84,7.52785305]
[1750595915225,2.77866423,132.87,132.84,7.52785305]
[1750595915427,2.77866423,132.86,132.83,36.56821521]
[1750595915626,2.77866423,132.85,132.83,36.56821521]
[1750595915812,2.77866423,132.86,132.83,36.56821521]
[1750595916018,2.77866423,132.85,132.83,36.56821521]
[1750595916227,2.77866423,132.86,132.83,36.56821521]
[1750595916534,2.77866423,132.85,132.83,36.56821521]
[1750595916718,2.77866423,132.84,132.83,26.17786407]
[1750595916918,2.77866423,132.86,132.83,26.17786407]
[1750595917124,2.77866423,132.85,132.83,26.17786407]
[1750595917329,2.78164722,132.84,132.82,26.17852912]
[1750595917559,2.78164722,132.86,132.82,26.17852912]
[1750595917846,2.78164722,132.85,132.82,26.17852912]
[1750595918014,2.78164722,132.84,132.79,7.53068755]
[1750595918213,2.78164722,132.83,132.81,29.04]
[1750595918416,26.0,132.83,132.79,7.53068755]
[1750595919121,2.78206717,132.82,132.79,7.53068755]
[1750595919310,2.78206166,132.82,132.79,7.53068755]
[1750595919910,2.78206166,132.82,132.78,54.02964886]
[1750595920113,28.78206166,132.81,132.78,32.52070164]
[1750595920411,26.0,132.81,132.78,32.52070164]
[1750595920627,7.5284385,132.83,132.78,32.52070164]
[1750595920828,2.78367901,132.82,132.78,32.52070164]
[1750595921031,26.0,132.8,132.78,6.34]
[1750595921249,26.0,132.8,132.77,7.53177394]
[1750595922129,26.0,132.79,132.76,7.53218273]
[1750595924597,144.03669138,132.82,132.76,7.53218273]
[1750595924852,26.0,132.81,132.76,7.53218273]
[1750595925016,26.0,132.81,132.77,18.64964886]
[1750595925442,144.03669138,132.85,132.8,7.53012048]
[1750595925646,28.77874462,132.84,132.8,7.53012048]
[1750595925836,26.0,132.84,132.8,7.53012048]
[1750595926718,144.03669138,132.85,132.81,18.64964886]
[1750595926917,144.03669138,132.88,132.81,18.64964886]
[1750595927147,2.77799097,132.87,132.81,18.64964886]
[1750595927731,28.77799097,132.87,132.81,18.64964886]
[1750595927981,26.0,132.84,132.8,36.57012048]
[1750595928136,26.0,132.83,132.8,36.57012048]
[1750595929163,26.0,132.83,132.79,32.52010518]
[1750595930964,26.0,132.82,132.79,32.52010518]
[1750595931349,26.0,132.82,132.8,26.17968585]
[1750595933262,26.0,132.83,132.8,26.17968585]
[1750595933581,26.0,132.83,132.8,45.00498705]
[1750595934375,144.03669138,132.86,132.8,45.00498705]
[1750595934887,170.03669138,132.86,132.8,45.00498705]
[1750595935379,26.0,132.86,132.82,20.15104886]
[1750595935983,150.11835396,132.89,132.82,20.15104886]
[1750595936167,2.77519321,132.88,132.82,20.15104886]
[1750595936486,26.0,132.86,132.84,18.64964886]
[1750595938368,26.0,132.86,132.84,26.17705367]
[1750595938565,26.0,132.86,132.84,7.52740481]
[1750595939361,26.0,132.88,132.84,7.52740481]
[1750595939893,2.78207012,132.87,132.84,7.52740481]
[1750595940054,2.78213549,132.87,132.84,7.52740481]
[1750595940552,2.78213549,132.87,132.84,18.64964886]
[1750595942081,26.0,132.88,132.84,18.64964886]
[1750595942267,2.78271127,132.87,132.84,18.64964886]
[1750595942682,2.78276957,132.87,132.85,7.52728641]
[1750595943068,28.78276957,132.86,132.82,1.5014]
[1750595943383,2.78276957,132.85,132.82,26.17863545]
[1750595943772,2.78335016,132.85,132.82,26.17863545]
[1750595944377,144.03669138,132.89,132.83,18.64964886]
[1750595944577,10.55124239,132.92,132.85,18.64964886]
[1750595944777,10.55124239,132.92,132.87,25.14214886]
[1750595945078,13.33578199,132.92,132.89,18.64964886]
[1750595945280,10.55124239,132.92,132.89,18.64964886]
[1750595945890,13.33611387,132.92,132.89,18.64964886]
[1750595946197,10.55124239,132.92,132.89,18.64964886]
[1750595946367,10.55124239,132.92,132.88,1.6215]
[1750595946555,10.55124239,132.92,132.87,25.14214886]
[1750595946755,10.55124239,132.92,132.89,18.64964886]
[1750595947190,13.33081167,132.92,132.89,18.64964886]
[1750595947859,10.55124239,132.92,132.89,47.68964886]
[1750595948987,10.55124239,132.92,132.91,18.64964886]
[1750595950585,26.0,132.93,132.91,18.64964886]
[1750595950986,26.0,132.94,132.92,7.52332229]
[1750595951194,170.03669138,132.97,132.93,18.64964886]
[1750595951667,2.77916706,132.96,132.93,18.64964886]
[1750595951864,2.77916706,132.96,132.92,36.56332229]
[1750595952064,26.0,132.94,132.91,6.34]
[1750595952265,26.0,132.94,132.9,29.04]
[1750595952266,26.0,132.94,132.9,7.52445447]
[1750595952464,2.77688694,132.93,132.9,7.52445447]
[1750595952696,28.77688694,132.93,132.89,55.21444629]
[1750595952867,26.0,132.93,132.89,55.21444629]
[1750595953194,26.0,132.92,132.89,55.21444629]
[1750595956103,26.0,132.94,132.89,55.21444629]
[1750595957266,26.0,132.92,132.89,55.21444629]
[1750595959069,26.0,132.92,132.89,29.04]
[1750595959781,26.0,132.92,132.88,7.52541058]
[1750595961587,144.03669138,132.95,132.89,47.66964886]
[1750595961787,6.34,132.98,132.91,18.64964886]
[1750595962002,26.0,132.96,132.92,29.02]
[1750595962376,26.0,132.96,132.93,18.64964886]
[1750595962577,144.03669138,132.99,132.93,18.64964886]
[1750595962984,26.0,132.96,132.94,7.52219046]
[1750595964673,26.0,132.96,132.93,7.5225504]
[1750595964894,26.0,132.96,132.92,36.54316001]
[1750595965091,26.0,132.96,132.92,29.02]
[1750595965681,26.0,132.96,132.91,7.52337469]
[1750595965894,2.77197604,132.95,132.91,7.52337469]
[1750595966298,26.0,132.96,132.91,7.52337469]
[1750595966498,26.0,132.94,132.91,7.52337469]
[1750595967783,5.5477644,132.98,132.9,30.6478]
[1750595967784,26.0,132.95,132.9,36.54425398]
[1750595968210,144.03669138,132.94,132.9,36.54425398]
[1750595968507,144.03669138,132.94,132.89,7.52478439]
[1750595968709,26.0,132.91,132.87,14.0182308]
[1750595968909,26.0,132.91,132.87,7.5257308]
[1750595969888,26.0,132.9,132.87,7.5257308]
[1750595972289,28.77936158,132.89,132.86,7.52656194]
[1750595972494,26.0,132.89,132.86,7.52656194]
[1750595974225,26.0,132.88,132.84,7.52763186]
[1750595974430,2.78176832,132.87,132.82,18.64964886]
[1750595974600,2.78176832,132.87,132.82,47.66964886]
[1750595974913,28.78176832,132.87,132.81,126.90839582]
[1750595975112,28.78176832,132.87,132.81,120.29109582]
[1750595975293,26.0,132.87,132.81,149.31109582]
[1750595975630,26.0,132.87,132.81,120.29109582]
[1750595975796,26.0,132.83,132.81,6.32]
[1750595975996,26.0,132.83,132.81,13.84951069]
[1750595976197,26.0,132.84,132.81,13.84951069]
[1750595981103,144.03669138,132.87,132.82,18.64964886]
[1750595981316,6.32,132.91,132.84,18.64964886]
[1750595981620,2.7817049,132.9,132.84,18.64964886]
[1750595981915,28.7817049,132.89,132.84,18.64964886]
[1750595982232,2.7817049,132.88,132.84,18.64964886]
[1750595982396,2.7817049,132.88,132.85,7.52728641]
[1750595983105,26.0,132.87,132.84,7.52763952]
[1750595983309,26.0,132.85,132.83,29.04]
[1750595983511,26.0,132.85,132.83,36.56840643]
[1750595984423,26.0,132.87,132.83,36.56840643]
[1750595984645,2.78116741,132.86,132.83,36.56840643]
[1750595984813,26.0,132.87,132.83,36.56840643]
[1750595985000,2.78013688,132.86,132.83,36.56840643]
[1750595985712,26.0,132.87,132.83,36.56840643]
[1750595986627,151.56097054,132.91,132.83,36.56840643]
[1750595986628,26.0,132.88,132.83,36.56840643]
[1750595986816,28.78121036,132.87,132.81,7.52933098]
[1750595987019,26.0,132.85,132.81,7.52933098]
[1750595988511,177.5623861,132.88,132.81,7.52933098]
[1750595988712,2.77999752,132.87,132.81,7.52933098]
[1750595989116,170.03669138,132.88,132.81,7.52933098]
[1750595989324,2.77980181,132.87,132.81,7.52933098]
[1750595990318,2.77980181,132.87,132.82,18.64964886]
[1750595990519,2.78045822,132.87,132.83,29.08]
[1750595991008,170.03669138,132.88,132.84,7.52785305]
[1750595991210,2.78056792,132.87,132.84,7.52785305]
[1750595992027,170.03669138,132.88,132.84,7.52785305]
[1750595992216,2.78182446,132.87,132.84,7.52785305]
[1750595992609,170.03669138,132.88,132.84,7.52785305]
[1750595993215,144.03669138,132.88,132.84,7.52785305]
[1750595993406,144.03669138,132.88,132.85,18.64964886]
[1750595994632,144.03669138,132.88,132.86,7.52671985]
[1750595996016,144.03669138,132.94,132.87,18.64964886]
[1750595996339,26.0,132.92,132.87,18.64964886]
[1750595996508,2.78394966,132.91,132.87,18.64964886]
[1750595997021,2.78394966,132.9,132.87,18.64964886]
[1750595997213,2.78394966,132.91,132.87,18.64964886]
[1750595997530,2.78394966,132.9,132.87,18.64964886]
[1750595997731,2.78445051,132.91,132.86,55.38351948]
[1750595997908,2.78445051,132.9,132.86,55.38351948]
[1750595998108,2.78445051,132.89,132.86,55.38351948]
[1750595998303,2.78445051,132.91,132.86,55.38351948]
[1750595998522,2.78445051,132.9,132.86,55.38351948]
[1750595998735,2.78445051,132.89,132.86,55.38351948]
[1750595999030,2.78445051,132.91,132.86,36.56671985]
[1750595999234,2.78445051,132.9,132.85,13.86709908]
[1750595999453,144.03669138,132.89,132.85,7.52709908]
[1750595999664,2.78478558,132.88,132.85,7.52709908]
[1750595999808,2.78478558,132.87,132.85,7.52709908]
[1750596000015,2.78478558,132.88,132.85,7.52709908]
[1750596000323,2.78486341,132.87,132.85,7.52709908]
[1750596000640,2.78412822,132.88,132.85,7.52709908]
[1750596000930,2.78412822,132.87,132.85,7.52709908]
[1750596001239,2.78412822,132.88,132.85,7.52709908]
[1750596001421,2.78412822,132.87,132.85,7.52709908]
[1750596001622,2.78412822,132.88,132.85,7.52709908]
[1750596001821,2.78412822,132.87,132.85,7.52709908]
[1750596002141,144.03669138,132.89,132.85,26.17674794]
[1750596002337,144.03669138,132.89,132.85,7.52709908]
[1750596002516,2.78716259,132.88,132.85,7.52709908]
[1750596002711,144.03669138,132.89,132.85,7.52709908]
[1750596002915,2.78769612,132.88,132.85,7.52709908]
[1750596003116,144.03669138,132.89,132.85,7.52709908]
[1750596003451,2.7875216,132.88,132.85,7.52709908]
[1750596003622,2.7875216,132.87,132.85,7.52709908]
[1750596003830,2.78743835,132.88,132.85,7.52709908]
[1750596004033,2.78743835,132.87,132.85,7.52709908]
[1750596004229,2.78743835,132.86,132.85,7.52709908]
[1750596004540,2.78743835,132.88,132.85,7.52709908]
[1750596004717,2.78743835,132.87,132.85,7.52709908]
[1750596004916,2.78743835,132.86,132.85,7.52709908]
[1750596005526,2.78823442,132.88,132.85,7.52709908]
[1750596005829,2.78823442,132.87,132.85,7.52709908]
[1750596006018,26.0,132.91,132.86,18.64964886]
[1750596006223,28.78899212,132.9,132.86,18.64964886]
[1750596006426,2.78899212,132.89,132.86,18.64964886]
[1750596006629,2.78881769,132.89,132.86,47.70964886]
[1750596006854,28.78881769,132.92,132.86,47.70964886]
[1750596007166,2.78881769,132.91,132.86,47.70964886]
[1750596007344,2.78881769,132.9,132.86,47.70964886]
[1750596007543,2.78881769,132.89,132.87,7.52615338]
[1750596007727,26.0,132.92,132.87,7.52615338]
[1750596007932,2.78681608,132.91,132.87,7.52615338]
[1750596008133,2.78681608,132.9,132.87,7.52615338]
[1750596008328,2.78681608,132.89,132.87,7.52615338]
[1750596008540,2.78681608,132.91,132.87,7.52615338]
[1750596008852,2.78681608,132.9,132.87,7.52615338]
[1750596009037,26.0,132.92,132.87,7.52615338]
[1750596009239,2.78692204,132.91,132.88,18.64964886]
[1750596009550,26.0,132.92,132.88,18.64964886]
[1750596009744,2.78707265,132.91,132.88,18.64964886]
[1750596009945,26.0,132.92,132.88,18.64964886]
[1750596010246,2.78713186,132.91,132.88,18.64964886]
[1750596010548,26.0,132.92,132.88,18.64964886]
[1750596010747,2.78738777,132.91,132.89,7.52502069]
[1750596010963,2.78790728,132.9,132.88,7.52540047]
[1750596011125,2.78790728,132.89,132.84,26.62697765]
[1750596011442,2.78734332,132.88,132.85,35.38]
[1750596011655,2.78734332,132.87,132.85,35.38]
[1750596011955,5.57591433,132.9,132.85,35.38]
[1750596012165,2.7871793,132.89,132.85,35.38]
[1750596012447,2.7871793,132.88,132.85,42.90728641]
[1750596012741,2.7871793,132.87,132.85,42.90728641]
[1750596013047,2.7871793,132.86,132.85,42.90728641]
[1750596013231,2.7871793,132.86,132.85,13.86728641]
[1750596013547,5.57591433,132.9,132.85,13.86728641]
[1750596013742,2.79081614,132.89,132.85,13.86728641]
[1750596013929,2.79081614,132.88,132.85,13.86728641]
[1750596014135,144.03669138,132.91,132.85,13.86728641]
[1750596014337,2.79105041,132.9,132.85,13.86728641]
[1750596014688,2.79104645,132.89,132.86,18.64964886]
[1750596014823,144.03669138,132.91,132.86,47.68964886]
[1750596015024,2.79090974,132.9,132.86,47.68964886]
[1750596015225,2.79090974,132.89,132.86,29.04]
[1750596015452,144.03669138,132.91,132.86,29.04]
[1750596015453,2.79058152,132.88,132.86,29.04]
[1750596015649,144.03669138,132.91,132.86,29.04]
[1750596015863,2.790477,132.9,132.86,29.04]
[1750596016047,2.790477,132.89,132.86,29.04]
[1750596016234,2.790477,132.88,132.86,29.04]
[1750596016431,144.03669138,132.91,132.86,29.04]
[1750596016634,2.79075073,132.9,132.87,7.52615338]
[1750596016836,2.79075073,132.89,132.87,7.52615338]
[1750596017046,144.03669138,132.94,132.88,18.64964886]
[1750596017359,2.79115332,132.93,132.9,26.76654886]
[1750596017568,26.0,132.95,132.9,26.76654886]
[1750596017737,2.79178893,132.94,132.9,26.76654886]
[1750596017936,2.79178893,132.93,132.9,26.76654886]
[1750596018134,2.78873456,132.94,132.9,26.76654886]
[1750596018366,2.78888465,132.93,132.9,26.76654886]
[1750596018581,2.78888465,132.94,132.91,7.52388834]
[1750596018879,2.78849079,132.93,132.91,7.52388834]
[1750596019186,26.0,132.95,132.91,7.52388834]
[1750596019383,2.78929654,132.94,132.91,7.52388834]
[1750596019569,2.78929654,132.93,132.91,7.52388834]
[1750596019758,26.0,132.95,132.91,7.52388834]
[1750596019960,2.78909854,132.94,132.91,7.52388834]
[1750596020153,2.78909854,132.93,132.91,7.52388834]
[1750596020353,26.0,132.95,132.91,7.52388834]
[1750596020552,2.78905426,132.94,132.91,7.52388834]
[1750596020789,2.78905426,132.93,132.91,7.52388834]
[1750596020988,26.0,132.95,132.91,7.52388834]
[1750596021163,2.78906927,132.94,132.9,15.64114782]
[1750596021363,2.78906927,132.93,132.9,15.64114782]
[1750596021564,2.78906927,132.92,132.9,15.64114782]
[1750596021762,2.78906927,132.94,132.9,7.52424782]
[1750596021961,2.78906927,132.93,132.9,7.52424782]
[1750596022282,2.78906927,132.92,132.89,36.56483776]
[1750596022455,26.0,132.94,132.89,36.56483776]
[1750596022648,2.78722236,132.93,132.89,36.56483776]
[1750596022851,2.78722236,132.92,132.89,36.56483776]
[1750596023074,26.0,132.93,132.89,36.56483776]
[1750596023075,2.78722236,132.91,132.89,36.56483776]
[1750596023273,2.78786954,132.92,132.89,36.56483776]
[1750596023468,26.0,132.93,132.89,36.56483776]
[1750596023665,2.78797518,132.92,132.89,36.56483776]
[1750596023984,2.78734144,132.92,132.89,36.56483776]
[1750596024570,26.0,132.93,132.89,36.56483776]
[1750596024770,2.78890811,132.92,132.89,36.56483776]
[1750596025082,2.78890811,132.91,132.89,36.56483776]
[1750596025268,2.78890811,132.92,132.89,36.56483776]
[1750596025467,2.78890811,132.91,132.89,36.56483776]
[1750596025665,2.78890811,132.92,132.89,36.56483776]
[1750596025964,26.0,132.93,132.89,36.56483776]
[1750596026167,2.78988475,132.92,132.89,36.56483776]
[1750596026362,2.78988475,132.91,132.89,36.56483776]
[1750596026562,26.0,132.93,132.89,36.56483776]
[1750596026758,2.78976803,132.92,132.89,36.56483776]
[1750596026974,2.78976803,132.91,132.89,36.56483776]
[1750596027175,26.0,132.93,132.89,36.56483776]
[1750596027375,2.79014782,132.92,132.89,36.56483776]
[1750596027583,2.79014782,132.91,132.89,36.56483776]
[1750596027885,2.79014782,132.92,132.89,36.56483776]
[1750596028059,2.79014782,132.91,132.89,36.56483776]
[1750596028380,2.79014782,132.92,132.89,36.56483776]
[1750596028556,2.79014782,132.91,132.89,36.56483776]
[1750596028758,2.79014782,132.92,132.89,36.56483776]
[1750596029066,2.79014782,132.91,132.88,7.52539022]
[1750596029267,2.79014782,132.9,132.88,7.52539022]
[1750596029578,2.79162625,132.92,132.88,7.52539022]
[1750596029879,2.79162625,132.91,132.88,7.52539022]
[1750596030076,2.79162625,132.9,132.88,7.52539022]
[1750596030258,2.79162625,132.92,132.88,7.52539022]
[1750596030461,2.79162625,132.91,132.88,7.52539022]
[1750596030685,2.79162625,132.9,132.88,7.52539022]
[1750596030884,31.58463369,132.93,132.88,7.52539022]
[1750596031070,2.79178769,132.92,132.88,7.52539022]
[1750596031268,2.79178769,132.91,132.87,44.37577936]
[1750596031460,2.79178769,132.9,132.87,44.37577936]
[1750596031663,2.79178769,132.89,132.87,44.37577936]
[1750596031972,39.10745905,132.93,132.87,44.37577936]
[1750596032182,2.79440876,132.92,132.86,13.86652714]
[1750596032477,2.79440876,132.91,132.86,42.88652714]
[1750596032683,2.79440876,132.9,132.86,42.88652714]